[Event "2nd Namma Bengaluru Open-A 2025"]
[Site "Bengaluru"]
[Date "2025.04.11"]
[Round "2.1"]
[White "Iniyan, Pa"]
[Black "Aarav Sinha"]
[Result "1-0"]
[Annotator "TA"]
[ECO "E04"]
[WhiteElo "2578"]
[BlackElo "2187"]
[PlyCount "101"]
[EventDate "2025.04.10"]
[EventType "swiss"]
[EventCountry "IND"]
[SourceTitle "playchess.com"]
[Source "ChessBase"]
[SourceQuality "1"]
[TimeControl "5400+30"]

{[%evp 15,101,31,18,6,2,8,15,20,20,-1,14,5,26,21,29,0,77,66,60,67,75,66,66,71,77,70,76,59,91,88,99,89,93,81,123,127,128,129,134,130,132,135,137,130,139,144,150,159,154,145,142,148,144,148,149,142,208,197,241,204,288,338,345,334,322,325,600,759,1073,1133,982,683,724,710,1015,956,1142,392,381,0,1347,1345,1664,1497,1404,1354,4718,4718]} 1. d4 {[%emt 0:01:43]} Nf6 {[%emt 0:01:19]} 2. c4 {[%emt 0:00:10]} e6 {[%emt 0:00:05]} 3. Nf3 {[%emt 0:00:07]} d5 {[%emt 0:00:07]} 4. g3 {[%emt 0:00:08]} dxc4 {[%emt 0:00:07]} 5. Bg2 {[%emt 0:00:09]} c5 {[%emt 0:00:18]} 6. O-O {[%emt 0:00:36]} Nc6 {[%emt 0:00:05]} 7. Qa4 {[%emt 0:05:43]} Bd7 {[%emt 0:03:30]} 8. Qxc4 {[%emt 0:02:16]} b5 {[%emt 0:00:05]} 9. Qc3 {[%emt 0:06:54] E04: Open Catalan: 5 Nf3.} b4 {[%emt 0:00:19]} 10. Qd3 {[%emt 0:00:50]} Rc8 {[%emt 0:02:44]} 11. dxc5 {[%emt 0:08:49] The position is equal.} Bxc5 {[%emt 0:00:28]} 12. Nbd2 {[%emt 0:00:08]} O-O {[%emt 0:03:32]} 13. Nb3 {[%emt 0:00:42] Against e5} Be7 {[%emt 0:07:47]} 14. Be3 {[%emt 0:08:50]} e5 {[%emt 0:14:34] White must now prevent ...e4.} 15. Qa6 {[%emt 0:04:32][%cal Of1d1]} Nd5 $146 {[%emt 0:04:25] [#]} (15... Rc7 $11 {remains equal.}) (15... Rc7 16. Nfd2 Ng4 17. Rfc1 Nxe3 18. fxe3 Bg5 19. Nf1 Qc8 20. Nc5 Nb8 21. Qd6 Rd8 {0-1 Chan,K (2292)-Nagarkatte,V (2345) Qatar Masters op 2023 (7)}) 16. Nxe5 $1 $16 {[%emt 0:01:35] White is more active.} Nxe3 {[%emt 0:05:05]} 17. Bxc6 {[%emt 0:00:10]} (17. Nxc6 Bxc6 18. fxe3 Bxg2 19. Kxg2 Bg5 $15) 17... Bxc6 {[%emt 0:02:33]} 18. Nxc6 {[%emt 0:00:10]} Rxc6 {[%emt 0:00:09]} 19. Qxc6 {[%emt 0:00:07]} Nxf1 {[%emt 0:00:03]} 20. Rxf1 {[%emt 0:00:19]} Bf6 {[%emt 0:00:15]} 21. Qc2 {[%emt 0:03:42]} Qe7 {[%emt 0:03:04] White now steadily converts the win.} 22. Na5 {[%emt 0:53:50]} Qe6 {[%emt 0:02:06]} 23. Nc4 {[%emt 0:00:00]} Rc8 {[%emt 0:02:20] [#]} 24. b3 {[%emt 0:00:00]} Re8 {[%emt 0:00:14]} 25. e3 {[%emt 0:00:00]} h5 {[%emt 0:00:11][%cal Bh7h5,Bh5h4][%mdl 32]} 26. Rd1 {[%emt 0:00:00]} Rc8 {[%emt 0:03:52]} 27. Qe2 {[%emt 0:00:00]} h4 {[%emt 0:00:26]} 28. Rd6 {[%emt 0:00:00]} Qe4 {[%emt 0:01:08]} 29. Qd3 {[%emt 0:00:00]} Qxd3 {[%emt 0:04:43]} 30. Rxd3 {[%emt 0:00:00]} hxg3 {[%emt 0:00:04]} 31. hxg3 {[%emt 0:00:00][%mdl 4096] Endgame KRB-KRN. White is a pawn up.} a5 {[%emt 0:00:10]} 32. e4 {[%emt 0:00:00][%cal Be3e4,Be4e5][%mdl 32]} a4 {[%emt 0:04:36]} 33. e5 {[%emt 0:00:00]} axb3 {[%emt 0:00:06]} 34. axb3 {[%emt 0:00:00]} Be7 {[%emt 0:00:12]} 35. f4 {[%emt 0:00:00]} Rc7 {[%emt 0:02:52]} (35... Ra8 $16 36. Rd7 Kf8) 36. Kf2 $18 {[%emt 0:00:00]} g6 {[%emt 0:00:21]} 37. Kf3 {[%emt 0:00:00]} Ra7 {[%emt 0:00:39]} (37... f5 {was worth a try.} 38. Rd2 Ra7) 38. g4 {[%emt 0:00:00][%cal Bg3g4,Bg4f5][%mdl 32]} Kf8 {[%emt 0:01:48]} 39. f5 {[%emt 0:00:00]} gxf5 {[%emt 0:00:05]} 40. gxf5 {[%emt 0:00:00]} f6 $2 {[%emt 0:00:04]} (40... Ke8 41. f6 Bf8) 41. e6 {[%emt 0:00:00]} Ra1 {[%emt 0:00:07]} 42. Ne3 {[%emt 0:00:00]} Rb1 {[%emt 0:08:36]} 43. Nd5 {[%emt 0:00:00]} Rf1+ {[%emt 0:00:19]} 44. Ke4 {[%emt 0:00:00]} Re1+ {[%emt 0:00:24]} 45. Re3 {[%emt 0:00:00]} Rc1 {[%emt 0:00:47]} 46. Rh3 $2 {[%emt 0:00:00]} (46. Re2 Ke8 47. Ra2 Re1+ 48. Kf3 Rf1+ 49. Kg4 (49. Ke4 Re1+ 50. Kf3 Rf1+ 51. Ke4 Re1+ $18)) 46... Re1+ {[%emt 0:00:09]} 47. Re3 $2 {[%emt 0:00:00]} (47. Kd4 $18 {Rh7 would now be deadly.} Rd1+ 48. Rd3) 47... Rd1 $2 {[%emt 0:01:57][%mdl 8192]} (47... Rc1 $11 48. Re2 Bd8) 48. Re2 {[%emt 0:00:00] White is clearly winning.} Rb1 {[%emt 0:01:04]} 49. Ra2 {[%emt 0:00:00] Threatening mate with Ra8+.} Re1+ {[%emt 0:01:04]} 50. Kf3 {[%emt 0:00:00]} Rf1+ {[%emt 0:01:16]} 51. Kg2 {[%emt 0:00:00] Weighted Error Value: White=0.31/Black=0.83  Loses game:     	---       	Black=1      Mistake:       	---       	Black=4      Inaccurate:     	White=1     	Black=3      OK:         	White=16    	Black=13     Best:        	White=2     	Black=1} 1-0

[Event "2nd Namma Bengaluru Open-A 2025"]
[Site "Bengaluru"]
[Date "2025.04.11"]
[Round "2.2"]
[White "Anadkat Kartavya"]
[Black "Grigoryan, Karen H."]
[Result "0-1"]
[Annotator "TA"]
[ECO "B47"]
[WhiteElo "2187"]
[BlackElo "2556"]
[PlyCount "100"]
[EventDate "2025.04.10"]
[EventType "swiss"]
[EventCountry "IND"]
[SourceTitle "playchess.com"]
[Source "ChessBase"]
[SourceQuality "1"]
[TimeControl "5400+30"]

{[%evp 9,100,8,41,19,22,31,65,39,79,45,48,50,45,44,103,79,138,118,165,183,183,168,198,203,189,189,215,202,314,321,305,303,420,-256,-237,-248,-239,-1018,-229,-485,-223,-234,-209,-251,-262,-262,-258,-260,-244,-239,-243,-257,-228,-211,-208,-244,-236,-235,-229,-234,-243,-250,-240,-296,-228,-236,-181,-179,-171,-203,-200,-276,-276,-262,-250,-229,-235,-367,-335,-408,-405,-575,-554,-554,-547,-625,-608,-666,-664,-4631,-4627,-4627,-4627]} 1. e4 {[%emt 0:07:03]} c5 {[%emt 0:00:16]} 2. Nf3 {[%emt 0:00:07]} e6 {[%emt 0:00:10]} 3. d4 {[%emt 0:00:23]} cxd4 {[%emt 0:00:04]} 4. Nxd4 {[%emt 0:00:04]} Nc6 {[%emt 0:00:05]} 5. Nc3 {[%emt 0:00:12]} Qc7 {[%emt 0:00:05]} 6. Qd3 {[%emt 0:04:21] B47: Sicilian: Taimanov: 5 Nc3 Qc7 6 f4, 6 g3 and 6 Be2.} a6 {[%emt 0:03:05] Against Ndb5} 7. Nxc6 {[%emt 0:00:23]} Qxc6 {[%emt 0:00:05]} 8. a4 {[%emt 0:01:59] White is slightly better.} Ne7 $146 {[%emt 0:00:38]} (8... Bc5 9. Be2 Ne7 10. O-O O-O 11. Be3 d6 12. Rfd1 e5 13. Bxc5 dxc5 14. Qg3 Ng6 {1-0 Albornoz Cabrera,C (2591)-Wang,C (2477) Biel HTO 56th 2023 (6)}) 9. Qg3 {[%emt 0:08:35]} Ng6 {[%emt 0:00:44]} 10. Bd3 {[%emt 0:02:43]} b6 {[%emt 0:04:30]} 11. h4 {[%emt 0:06:01][%cal Bh2h4,Bh4h5][%mdl 32]} Bb7 {[%emt 0:05:32]} (11... Bd6 $14 12. f4 O-O) 12. h5 $16 {[%emt 0:01:44]} Ne7 {[%emt 0:00:06]} ({Black should try} 12... Bd6 13. f4 Ne7) 13. Bf4 {[%emt 0:08:29]} f6 {[%emt 0:02:16]} (13... Rg8 $16) 14. O-O-O $36 {[%emt 0:01:34][%mdl 2048] Keeping Black busy.} Kf7 {[%emt 0:00:33]} 15. Be2 {[%emt 0:07:32]} b5 {[%emt 0:09:34]} 16. axb5 {[%emt 0:03:11]} axb5 {[%emt 0:01:30]} 17. Bxb5 {[%emt 0:01:29]} Qc5 {[%emt 0:07:26]} 18. Be3 {[%emt 0:11:32]} Qc8 {[%emt 0:05:34]} (18... Ra1+ 19. Kd2 Rxd1+ 20. Rxd1 Qc8) 19. Bxd7 {[%emt 0:05:54]} Ra1+ {[%emt 0:03:23]} 20. Nb1 {[%emt 0:00:02]} Qc4 {[%emt 0:00:20]} 21. Qb8 $4 {[%emt 0:03:23][%mdl 8192]} (21. Rd6 Bc8 22. b3 Qxe4 23. Bxc8 (23. Rxe6 Qb7 $11) 23... Nxc8 24. Rd7+ Be7 $18) (21. Rd4 $18 {was the only winning move.} Qa2 22. Kd2) 21... Bxe4 $19 {[%emt 0:02:28][%csl Ge4][%cal Rc4c2]} 22. Rd2 {[%emt 0:06:25] Hoping for b3.} Qa2 {[%emt 0:01:19][%csl Ga2][%cal Ra1b1]} 23. Qe8+ {[%emt 0:05:39]} Kg8 {[%emt 0:00:05][%csl Ga2][%cal Ra1b1]} 24. Bxe6+ {[%emt 0:00:27]} Qxe6 {[%emt 0:00:06]} 25. Rd8 {[%emt 0:01:27][%csl Gd8][%cal Re8f8]} Qf7 {[%emt 0:00:12]} (25... Bxg2 26. Qxf8#) 26. Bc5 {[%emt 0:03:57] [#]} Qxe8 {[%emt 0:00:26]} (26... Bxg2 27. Qxe7 (27. Bxe7 $2 Qxe8 28. Rxe8 Kf7 $19) 27... Qxe7 28. Bxe7 $11) 27. Rxe8 {[%emt 0:00:03]} Kf7 {[%emt 0:00:06]} (27... Bxg2 28. Re1 (28. Bxe7 $2 Kf7 $19) 28... Bc6 29. Rd8 $15 (29. R8xe7 Bxe7 30. Rxe7 h6 $15) (29. R1xe7 Bxe8 30. Rxe8 Kf7 $17)) 28. Rb8 {[%emt 0:03:13]} Ra8 {[%emt 0:01:07]} 29. Rxa8 {[%emt 0:00:32]} Bxa8 {[%emt 0:00:06]} 30. f3 {[%emt 0:00:07]} Nf5 {[%emt 0:00:10]} 31. Bxf8 {[%emt 0:00:41]} Rxf8 {[%emt 0:00:06]} 32. Nc3 {[%emt 0:00:07]} Ne3 {[%emt 0:00:17]} 33. Rg1 {[%emt 0:01:18]} Rc8 {[%emt 0:00:11]} 34. Kd2 {[%emt 0:00:27]} Nc4+ {[%emt 0:00:12]} 35. Kc1 {[%emt 0:00:02]} Rc5 {[%emt 0:00:11]} 36. h6 {[%emt 0:02:46]} gxh6 {[%emt 0:00:12]} 37. b3 {[%emt 0:00:07]} Ne5 {[%emt 0:00:22]} 38. Kb2 {[%emt 0:00:25]} Rc8 {[%emt 0:00:09]} 39. Rh1 {[%emt 0:00:41]} Rg8 {[%emt 0:00:16]} 40. Rxh6 {[%emt 0:00:31]} Rxg2 {[%emt 0:00:07]} 41. Rxh7+ {[%emt 0:00:11]} Kg8 {[%emt 0:00:28]} 42. Rc7 {[%emt 0:01:25]} Bxf3 {[%emt 0:00:09]} (42... Nxf3 43. Rc8+ Kg7 44. Rxa8 $11) 43. Nb5 {[%emt 0:00:54]} (43. Kc1 {keeps fighting.}) 43... f5 {[%emt 0:01:28]} 44. Nd4 {[%emt 0:01:20]} Be4 {[%emt 0:00:15]} 45. b4 {[%emt 0:01:39]} (45. Ne6 {was forced.}) 45... f4 {[%emt 0:02:03] Black is clearly winning.} 46. Re7 {[%emt 0:00:53]} Nc4+ {[%emt 0:00:07]} 47. Kc3 {[%emt 0:00:30]} Nd6 {[%emt 0:00:05] Against Re8+} 48. b5 {[%emt 0:01:22]} f3 {[%emt 0:00:13]} 49. Re6 {[%emt 0:00:26]} f2 {[%emt 0:00:15]} 50. Rf6 {[%emt 0:00:07] [#]} Bf5 $1 {[%emt 0:00:12][%mdl 512] Weighted Error Value: White=0.39/Black=0.20 (precise)   Missed win:     	White=1     	---        Mistake:       	White=2     	Black=4      Inaccurate:     	White=3     	Black=4      OK:         	White=13    	Black=13     Best:        	White=7     	Black=6} 0-1

[Event "2nd Namma Bengaluru Open-A 2025"]
[Site "Bengaluru"]
[Date "2025.04.11"]
[Round "2.3"]
[White "Petrosyan, Manuel"]
[Black "Saravana, Krishnan P."]
[Result "1-0"]
[Annotator "TA"]
[ECO "D02"]
[WhiteElo "2544"]
[BlackElo "2177"]
[PlyCount "212"]
[EventDate "2025.04.10"]
[EventType "swiss"]
[EventCountry "IND"]
[SourceTitle "playchess.com"]
[Source "ChessBase"]
[SourceQuality "1"]
[TimeControl "5400+30"]

{[%evp 11,212,0,14,20,26,11,16,0,27,14,31,19,18,27,23,25,17,14,19,25,14,10,14,4,27,0,8,10,21,0,52,36,43,36,45,70,62,24,17,14,18,19,13,-22,35,41,22,47,187,176,205,208,185,86,146,143,143,111,124,135,116,99,97,75,87,30,56,62,64,60,47,56,57,50,47,56,40,41,41,41,43,44,61,60,60,71,70,70,96,96,96,92,89,86,89,88,96,82,97,82,97,84,83,83,90,90,90,90,90,80,97,91,91,82,93,92,89,82,82,83,85,82,81,80,101,101,144,144,144,144,144,144,144,144,326,326,326,326,299,318,326,318,318,326,319,318,318,311,311,283,282,251,319,276,325,243,333,334,322,298,302,311,357,350,350,333,330,322,296,306,412,420,439,425,586,586,568,487,465,449,468,452,526,514,2189,1646,5357,0,725,674,843,478,657,640,1099,1013,964,912,29977,29978,29982,29983,29975]} 1. d4 {[%emt 0:01:28]} d5 {[%emt 0:00:11]} 2. Bf4 {[%emt 0:00:21]} Nf6 {[%emt 0:00:19]} 3. e3 {[%emt 0:02:52]} e6 {[%emt 0:00:13]} 4. Nf3 {[%emt 0:00:37]} c5 {[%emt 0:00:24]} 5. Nbd2 {[%emt 0:00:55]} Nc6 {[%emt 0:00:13]} 6. c3 {[%emt 0:01:06]} cxd4 {[%emt 0:00:18]} 7. exd4 {[%emt 0:00:28] D02: 1 d4 d5 2 Nf3 sidelines, including 2...Nf6 3 g3 and 2...Nf6 3 Bf4.} Nh5 {[%emt 0:00:24]} 8. Be3 {[%emt 0:01:17]} Bd6 {[%emt 0:01:04] [#]} 9. Ne5 $1 {[%emt 0:00:32] The position is equal.} Nf6 {[%emt 0:00:47]} (9... g6 10. g4) 10. Nd3 {[%emt 0:08:52]} Bd7 {[%emt 0:04:43]} 11. Be2 {[%emt 0:03:12]} Qc7 {[%emt 0:08:22][%cal Oc6a5]} 12. g3 {[%emt 0:01:00]} O-O {[%emt 0:03:09]} 13. O-O {[%emt 0:01:49]} a5 $146 {[%emt 0:05:02]} (13... b5 14. b4 a5 15. a3 e5 16. Nb3 e4 17. Ndc5 Bh3 18. Re1 a4 19. Nd2 Qb8 {0-1 Kokoszczynski,J (2250)-Szpar,M (2491) Titled Tuesday intern op 30th Jan Early blitz 2024 (6)}) 14. a4 {[%emt 0:01:43]} Ne7 {[%emt 0:00:46]} 15. Bf4 {[%emt 0:03:09]} Bxf4 {[%emt 0:03:59]} 16. Nxf4 {[%emt 0:00:05]} Rfb8 {[%emt 0:00:48]} 17. Ra2 {[%emt 0:18:23]} Nf5 {[%emt 0:04:52]} 18. Bd3 {[%emt 0:02:32]} Nd6 {[%emt 0:07:35]} 19. Qc2 {[%emt 0:00:53]} g6 {[%emt 0:04:42]} 20. Nf3 {[%emt 0:03:16]} Nc4 {[%emt 0:02:21]} (20... b5 $11) 21. b3 $14 {[%emt 0:04:18]} Nd6 {[%emt 0:01:27]} 22. c4 {[%emt 0:00:33]} dxc4 {[%emt 0:02:04]} 23. bxc4 {[%emt 0:00:28]} Rd8 {[%emt 0:00:42]} 24. Rc1 {[%emt 0:12:53]} Rac8 {[%emt 0:04:50]} 25. Raa1 {[%emt 0:00:02]} Nde8 $1 {[%emt 0:06:12]} 26. Ne5 {[%emt 0:13:49]} Bc6 {[%emt 0:01:38]} 27. Qb2 {[%emt 0:00:22][%cal Od4d5]} Qe7 {[%emt 0:07:04]} (27... Qd6 $1 $11) 28. Re1 {[%emt 0:03:04][%cal Od4d5]} Qb4 {[%emt 0:02:19]} 29. Qe2 {[%emt 0:02:26][%cal Oe5f7]} Rxd4 {[%emt 0:00:49] [#]} (29... Ng7 $14) 30. Nxf7 $1 $18 {[%emt 0:01:19][%mdl 512]} Qe7 {[%emt 0:01:54]} (30... Rxf4 31. gxf4) 31. Nxe6 {[%emt 0:09:04]} Rd7 {[%emt 0:03:01]} 32. Nfg5 {[%emt 0:01:05]} (32. Nh6+ $18 Kh8 33. Qc2) 32... h6 {[%emt 0:08:39]} (32... Ng7 $142) 33. Nf3 $16 {[%emt 0:00:06]} Ng7 {[%emt 0:00:57] Threatens to win with ...Nxe6.} 34. Ned4 {[%emt 0:02:25]} (34. Bxg6 $6 Bxf3 35. Qxf3 Nxe6 $14) 34... Qxe2 {[%emt 0:01:19]} 35. Bxe2 {[%emt 0:00:00]} Be4 {[%emt 0:00:19]} 36. Nb5 {[%emt 0:01:29]} Bxf3 {[%emt 0:01:09]} 37. Bxf3 {[%emt 0:00:01]} Rxc4 {[%emt 0:00:11] [#]} 38. Rec1 {[%emt 0:00:13] White plays on the queen side and is better} ({Better is} 38. Bxb7 $1 $16 h5 (38... Rxb7 39. Nd6 $11) 39. Bg2) 38... Rb4 {[%emt 0:02:41]} 39. Rc8+ {[%emt 0:00:29]} Kh7 {[%emt 0:01:27]} 40. Ra8 {[%emt 0:00:37]} Ne6 {[%emt 0:05:59]} 41. Rxa5 {[%emt 0:00:19]} Nc5 {[%emt 0:00:24]} 42. Ra7 {[%emt 0:01:18]} Nxa4 {[%emt 0:00:54]} 43. R7xa4 {[%emt 0:00:22]} Rxb5 {[%emt 0:00:10]} 44. R1a2 {[%emt 0:00:20]} Kg7 {[%emt 0:01:03]} 45. Kg2 {[%emt 0:00:04]} g5 {[%emt 0:01:04]} 46. Rc2 {[%emt 0:00:16]} Rf7 {[%emt 0:01:42]} 47. Rd4 {[%emt 0:00:19]} b6 {[%emt 0:00:48][%cal Bb7b6,Bb6b5][%mdl 32]} 48. h3 {[%emt 0:00:25]} Rc5 {[%emt 0:00:46]} 49. Rb2 {[%emt 0:00:15]} Nd7 {[%emt 0:00:45]} 50. Bh5 {[%emt 0:01:02]} Re7 {[%emt 0:00:17]} 51. Rd6 {[%emt 0:00:29]} Nf6 {[%emt 0:00:54]} 52. Bf3 {[%emt 0:01:04]} b5 {[%emt 0:01:20]} 53. Rb6 {[%emt 0:00:21]} Ree5 {[%emt 0:01:05]} 54. Ra2 {[%emt 0:00:09]} Rc7 {[%emt 0:00:30] Repels Ra7} 55. Ra5 {[%emt 0:00:29]} Rce7 {[%emt 0:00:38]} 56. Raxb5 {[%emt 0:00:37] White is more active.} Rxb5 {[%emt 0:00:06]} 57. Rxb5 {[%emt 0:00:01][%mdl 4096] Endgame KRB-KRN. White is a pawn up.} Kf7 {[%emt 0:00:15]} 58. Bd1 {[%emt 0:00:23]} Kg7 {[%emt 0:00:10]} 59. Rb4 {[%emt 0:00:07]} Rd7 {[%emt 0:00:29]} 60. Bb3 {[%emt 0:00:17]} Rc7 {[%emt 0:00:37]} 61. h4 {[%emt 0:00:53]} Kg6 {[%emt 0:00:35]} 62. Ba2 {[%emt 0:00:39]} Re7 {[%emt 0:00:20]} 63. Bb1+ {[%emt 0:00:20]} Kg7 {[%emt 0:00:14]} 64. Kh3 {[%emt 0:00:17]} Re2 {[%emt 0:00:43]} 65. Rb7+ {[%emt 0:00:27]} Kf8 {[%emt 0:00:27]} 66. hxg5 {[%emt 0:00:12]} hxg5 {[%emt 0:00:38]} 67. Kg2 {[%emt 0:00:03]} Re7 {[%emt 0:00:58]} 68. Rb5 {[%emt 0:00:03]} Rg7 {[%emt 0:00:21]} 69. Kf3 {[%emt 0:01:03]} Ke7 {[%emt 0:00:32]} 70. Ba2 {[%emt 0:00:19] Prevents Rg8.} Kd8 {[%emt 0:00:52]} 71. Ra5 {[%emt 0:01:21]} Ke7 {[%emt 0:00:49]} 72. Ra6 {[%emt 0:00:34]} Rh7 $2 {[%emt 0:00:36]} (72... Rg6 $16 {was necessary.} 73. Ra7+ Kf8) 73. Re6+ $18 {[%emt 0:00:51]} Kf7 {[%emt 0:00:07]} 74. Re5+ {[%emt 0:00:04]} Kf8 {[%emt 0:00:09]} 75. Rxg5 {[%emt 0:00:23]} Rb7 {[%emt 0:00:25]} 76. Re5 {[%emt 0:00:33]} Ra7 {[%emt 0:00:56]} 77. Bb3 {[%emt 0:00:18]} Ra3 {[%emt 0:00:35]} 78. Re3 {[%emt 0:00:36]} Kg7 {[%emt 0:00:40]} 79. Be6 {[%emt 0:00:29]} Ra4 {[%emt 0:00:14]} 80. Bf5 {[%emt 0:00:29]} Kh6 {[%emt 0:00:19]} 81. Rb3 {[%emt 0:00:16]} Kg5 {[%emt 0:00:15]} 82. Bd3 {[%emt 0:00:21]} Ra2 {[%emt 0:00:38]} 83. Be2 {[%emt 0:00:56]} Kf5 {[%emt 0:01:47]} 84. Rb5+ {[%emt 0:00:33]} Kg6 {[%emt 0:00:00]} 85. Ke3 {[%emt 0:00:29]} Ra3+ {[%emt 0:00:00]} 86. Bd3+ {[%emt 0:00:12]} Kh6 {[%emt 0:00:00]} 87. f3 {[%emt 0:00:52] Wards off Ng4+} Ra4 {[%emt 0:00:00]} 88. Rf5 {[%emt 0:01:36]} Kg7 {[%emt 0:00:00]} 89. Rg5+ {[%emt 0:00:05]} Kf7 {[%emt 0:00:11]} 90. Rc5 {[%emt 0:00:18]} Kg7 {[%emt 0:00:16]} 91. Be4 {[%emt 0:01:28]} Kh6 {[%emt 0:00:43]} 92. g4 {[%emt 0:00:15]} Kg7 {[%emt 0:01:20]} 93. Kf4 {[%emt 0:00:04]} Ne8 {[%emt 0:00:28]} 94. Rg5+ {[%emt 0:01:12]} Kf8 {[%emt 0:00:45]} 95. Rf5+ {[%emt 0:00:03]} Kg7 {[%emt 0:00:26]} 96. Rd5 {[%emt 0:00:04]} Nf6 {[%emt 0:00:41]} 97. Rb5 {[%emt 0:00:11]} Ne8 {[%emt 0:00:25]} (97... Nxe4 $142 98. fxe4 Ra1) 98. Ke5 {[%emt 0:00:10] White threatens Rb7+ and mate.} Kh6 {[%emt 0:01:04]} 99. Kf4 {[%emt 0:01:01]} (99. Rb8 $142 Ra5+ 100. Kf4) 99... Kg7 $1 {[%emt 0:00:06]} 100. Rb7+ {[%emt 0:00:56]} Kf8 {[%emt 0:00:42]} 101. Rb6 {[%emt 0:00:58] Prevents Nd6} Kg7 {[%emt 0:00:48]} 102. g5 {[%emt 0:00:11] Strongly threatening Rb7+.} Ra5 {[%emt 0:00:18]} 103. Rb7+ {[%emt 0:00:31]} Kf8 {[%emt 0:00:22]} 104. Rd7 {[%emt 0:00:05]} Ra4 {[%emt 0:00:51]} 105. Ke5 {[%emt 0:00:20]} Ng7 {[%emt 0:00:51]} 106. Bd5 {[%emt 0:00:42]} Nh5 {[%emt 0:01:13] Weighted Error Value: White=0.12 (very precise) /Black=0.15 (very precise)   Loses game:     	---       	Black=1      Mistake:       	White=2     	Black=5      Inaccurate:     	White=3     	Black=9      OK:         	White=38    	Black=33     Best:        	White=4     	Black=3      Strong:       	---       	Black=1      Brilliant:      	White=1     	---} 1-0

[Event "2nd Namma Bengaluru Open-A 2025"]
[Site "Bengaluru"]
[Date "2025.04.11"]
[Round "2.4"]
[White "Saurabh Anand"]
[Black "Pranav Anand"]
[Result "0-1"]
[Annotator "ChessBase"]
[ECO "D35"]
[WhiteElo "2179"]
[BlackElo "2538"]
[PlyCount "88"]
[EventDate "2025.04.10"]
[EventType "swiss"]
[EventCountry "IND"]
[SourceTitle "playchess.com"]
[Source "ChessBase"]
[SourceQuality "1"]
[TimeControl "5400+30"]

1. d4 {[%emt 0:00:41]} Nf6 {[%emt 0:00:09]} 2. c4 {[%emt 0:00:27]} e6 {[%emt 0:00:08]} 3. Nf3 {[%emt 0:00:44]} d5 {[%emt 0:00:04]} 4. Nc3 {[%emt 0:01:11]} Nbd7 {[%emt 0:00:06]} 5. Bf4 {[%emt 0:00:48]} Bb4 {[%emt 0:00:15]} 6. cxd5 {[%emt 0:02:18]} exd5 {[%emt 0:00:12]} 7. e3 {[%emt 0:00:06]} Ne4 {[%emt 0:00:04]} 8. Qc2 {[%emt 0:01:34]} g5 {[%emt 0:00:16]} 9. Be5 {[%emt 0:00:54]} Nxe5 {[%emt 0:07:59]} 10. Nxe5 {[%emt 0:00:58]} c6 {[%emt 0:01:19]} 11. Bd3 {[%emt 0:03:46]} f6 {[%emt 0:01:26]} 12. Nf3 {[%emt 0:11:18]} Qe7 {[%emt 0:00:42]} 13. O-O {[%emt 0:09:00]} f5 {[%emt 0:08:55]} 14. Ne5 {[%emt 0:08:35]} Bd6 {[%emt 0:09:37]} 15. Nxc6 {[%emt 0:14:20]} bxc6 {[%emt 0:01:40]} 16. Nxe4 {[%emt 0:00:29]} dxe4 {[%emt 0:00:50]} 17. Qxc6+ {[%emt 0:00:19]} Qd7 {[%emt 0:15:22]} 18. Qxa8 {[%emt 0:01:39]} exd3 {[%emt 0:00:02]} 19. Rfd1 {[%emt 0:06:23]} O-O {[%emt 0:02:09]} 20. Qd5+ {[%emt 0:01:05]} Kg7 {[%emt 0:01:52]} 21. Qa5 {[%emt 0:02:59]} Bb7 {[%emt 0:05:32]} 22. d5 {[%emt 0:06:41]} Bc7 {[%emt 0:11:14]} 23. Qc3+ {[%emt 0:03:00]} Kg8 {[%emt 0:00:31]} 24. Rxd3 {[%emt 0:02:32]} Qd6 {[%emt 0:00:15]} 25. g3 {[%emt 0:02:26]} Bb6 {[%emt 0:00:29]} 26. Rc1 {[%emt 0:04:06]} Re8 {[%emt 0:08:31]} 27. a4 {[%emt 0:02:50]} Re7 {[%emt 0:08:28]} 28. Qd2 {[%emt 0:05:50]} Rd7 {[%emt 0:01:06]} 29. b4 {[%emt 0:02:49]} Bd8 {[%emt 0:01:26]} 30. b5 {[%emt 0:00:39]} a6 {[%emt 0:01:01]} 31. Qa2 {[%emt 0:04:12]} axb5 {[%emt 0:01:45]} 32. axb5 {[%emt 0:00:10]} Kg7 {[%emt 0:00:21]} 33. Qb2+ {[%emt 0:01:15]} Bf6 {[%emt 0:01:10]} 34. Qa3 {[%emt 0:00:33]} Qe5 {[%emt 0:01:24]} 35. Rcd1 {[%emt 0:00:41]} Qe4 {[%emt 0:00:46]} 36. Qc5 {[%emt 0:00:33]} h5 {[%emt 0:00:55]} 37. b6 {[%emt 0:00:22]} h4 {[%emt 0:00:30]} 38. Qb5 {[%emt 0:00:06]} Rd8 {[%emt 0:01:14]} 39. Rf1 {[%emt 0:01:10]} Rxd5 {[%emt 0:02:18]} 40. Rxd5 {[%emt 0:00:02]} Bxd5 {[%emt 0:00:06]} 41. f3 {[%emt 0:00:11]} Qxe3+ {[%emt 0:00:05]} 42. Kg2 {[%emt 0:00:04]} h3+ {[%emt 0:09:16]} 43. Kxh3 {[%emt 0:00:33]} g4+ {[%emt 0:00:00]} 44. fxg4 {[%emt 0:00:05]} Qh6# {[%emt 0:00:00]} 0-1